[Event "*** Titled Tuesday Blitz"]
[Site "Chess.com"]
[Date "2020.04.21"]
[Round "8"]
[White "KrakenBeast"]
[Black "RiskyDecision"]
[Result "1-0"]
[WhiteElo "2371"]
[BlackElo "2513"]
[TimeControl "180+1"]
[EndTime "11:39:14 PDT"]
[Termination "KrakenBeast won on time"]

1. d4 {[%clk 0:03:00.9]} 1... f5 {[%clk 0:02:59.2]} 2. c4 {[%clk 0:02:58.7]}
2... Nf6 {[%clk 0:02:57.9]} 3. Nc3 {[%clk 0:02:59.6]} 3... d6 {[%clk 0:02:57.6]}
4. Bf4 {[%clk 0:02:50]} 4... g6 {[%clk 0:02:52.6]} 5. h4 {[%clk 0:02:47.5]} 5...
Bg7 {[%clk 0:02:39.2]} 6. e3 {[%clk 0:02:46.9]} 6... h6 {[%clk 0:02:35.7]} 7.
Nf3 {[%clk 0:02:43.3]} 7... O-O {[%clk 0:02:30.9]} 8. Be2 {[%clk 0:02:41.4]}
8... e6 {[%clk 0:02:26.3]} 9. Qd2 {[%clk 0:02:39.2]} 9... Qe7 {[%clk 0:02:22.4]}
10. O-O-O {[%clk 0:02:30.1]} 10... Nc6 {[%clk 0:02:16.5]} 11. d5 {[%clk
0:02:20.1]} 11... Nb4 {[%clk 0:02:06.3]} 12. dxe6 {[%clk 0:02:08.5]} 12... Bxe6
{[%clk 0:01:58]} 13. Nd4 {[%clk 0:02:08.6]} 13... Bf7 {[%clk 0:01:49.7]} 14. Kb1
{[%clk 0:02:01.9]} 14... a5 {[%clk 0:01:48.7]} 15. h5 {[%clk 0:01:46.2]} 15...
g5 {[%clk 0:01:45.3]} 16. Nxf5 {[%clk 0:01:44.6]} 16... Qd7 {[%clk 0:01:36.8]}
17. Nxg7 {[%clk 0:01:26.4]} 17... gxf4 {[%clk 0:01:36.9]} 18. exf4 {[%clk
0:01:20.1]} 18... Kxg7 {[%clk 0:01:36.8]} 19. g4 {[%clk 0:01:20.7]} 19... Kh8
{[%clk 0:01:09.6]} 20. Qd4 {[%clk 0:01:18.5]} 20... Be6 {[%clk 0:00:50.8]} 21.
f5 {[%clk 0:01:10.7]} 21... Bg8 {[%clk 0:00:38]} 22. f4 {[%clk 0:01:07.8]} 22...
Rae8 {[%clk 0:00:32.7]} 23. Bf3 {[%clk 0:01:05]} 23... Nc6 {[%clk 0:00:28.3]}
24. Bxc6 {[%clk 0:01:02.4]} 24... bxc6 {[%clk 0:00:25.7]} 25. c5 {[%clk
0:01:00.5]} 25... Kh7 {[%clk 0:00:19.3]} 26. Rhg1 {[%clk 0:00:56.2]} 26... Nd5
{[%clk 0:00:17.9]} 27. Ka1 {[%clk 0:00:51.1]} 27... dxc5 {[%clk 0:00:16.8]} 28.
Qxc5 {[%clk 0:00:50.6]} 28... Qd6 {[%clk 0:00:17.2]} 29. Qd4 {[%clk 0:00:49.2]}
29... Qxf4 {[%clk 0:00:15.7]} 30. Qc5 {[%clk 0:00:40.8]} 30... Nxc3 {[%clk
0:00:14.2]} 31. Qxc3 {[%clk 0:00:41.7]} 31... Rd8 {[%clk 0:00:12.5]} 32. Qxc6
{[%clk 0:00:37.4]} 32... Rxd1+ {[%clk 0:00:10.6]} 33. Rxd1 {[%clk 0:00:35.6]}
33... Qxg4 {[%clk 0:00:10]} 34. Rd7+ {[%clk 0:00:32.7]} 34... Rf7 {[%clk
0:00:10]} 35. Qg6+ {[%clk 0:00:33]} 35... Qxg6 {[%clk 0:00:06.4]} 36. fxg6+
{[%clk 0:00:32.8]} 36... Kg7 {[%clk 0:00:07.1]} 37. gxf7 {[%clk 0:00:32.9]}
37... Bxf7 {[%clk 0:00:08]} 38. Rxc7 {[%clk 0:00:33.3]} 38... Kf6 {[%clk
0:00:08.4]} 39. Rxf7+ {[%clk 0:00:31.7]} 39... Kxf7 {[%clk 0:00:09.3]} 40. a3
{[%clk 0:00:32.4]} 40... a4 {[%clk 0:00:08.6]} 41. b3 {[%clk 0:00:32.9]} 41...
Kf6 {[%clk 0:00:09.3]} 42. bxa4 {[%clk 0:00:33.1]} 42... Ke6 {[%clk 0:00:07.8]}
43. Kb2 {[%clk 0:00:32.6]} 43... Kd6 {[%clk 0:00:08.7]} 44. Kc3 {[%clk
0:00:33.1]} 44... Kc6 {[%clk 0:00:09.6]} 45. Kd4 {[%clk 0:00:34]} 45... Kb6
{[%clk 0:00:10.5]} 46. Ke5 {[%clk 0:00:34.9]} 46... Ka5 {[%clk 0:00:11.4]} 47.
Kf6 {[%clk 0:00:35.8]} 47... Kxa4 {[%clk 0:00:12.3]} 48. Kg6 {[%clk 0:00:36.7]}
48... Kxa3 {[%clk 0:00:13.2]} 49. Kxh6 {[%clk 0:00:37.6]} 49... Kb4 {[%clk
0:00:14.1]} 50. Kg7 {[%clk 0:00:38.5]} 50... Kc5 {[%clk 0:00:15]} 51. h6 {[%clk
0:00:39.4]} 51... Kd6 {[%clk 0:00:15.9]} 52. h7 {[%clk 0:00:40.3]} 52... Ke7
{[%clk 0:00:16.8]} 53. h8=Q {[%clk 0:00:41.2]} 53... Ke6 {[%clk 0:00:04.7]} 54.
Qf8 {[%clk 0:00:42.1]} 54... Kd7 {[%clk 0:00:04.6]} 55. Qf6 {[%clk 0:00:41.1]}
55... Ke8 {[%clk 0:00:04.5]} 56. Qf7+ {[%clk 0:00:40.1]} 56... Kd8 {[%clk
0:00:04.5]} 57. Qa7 {[%clk 0:00:41]} 1-0

[Event "*** Titled Tuesday Blitz"]
[Site "Chess.com"]
[Date "2020.04.21"]
[Round "8"]
[White "Natalya_Buksa"]
[Black "Stewie_89"]
[Result "0-1"]
[WhiteElo "2478"]
[BlackElo "2635"]
[TimeControl "180+1"]
[EndTime "11:39:16 PDT"]
[Termination "Stewie_89 won by resignation"]

1. e4 {[%clk 0:03:00.9]} 1... Nf6 {[%clk 0:02:58.3]} 2. e5 {[%clk 0:03:00.6]}
2... Nd5 {[%clk 0:02:58.6]} 3. d4 {[%clk 0:03:01.5]} 3... d6 {[%clk 0:02:58.9]}
4. Nf3 {[%clk 0:03:02.4]} 4... g6 {[%clk 0:02:58.2]} 5. c4 {[%clk 0:02:59.3]}
5... Nb6 {[%clk 0:02:57.9]} 6. Nc3 {[%clk 0:02:58.4]} 6... Bg7 {[%clk
0:02:57.3]} 7. Bf4 {[%clk 0:02:53.9]} 7... O-O {[%clk 0:02:50.3]} 8. h3 {[%clk
0:02:53.9]} 8... Nc6 {[%clk 0:02:46.6]} 9. Be2 {[%clk 0:02:51.9]} 9... dxe5
{[%clk 0:02:41.4]} 10. dxe5 {[%clk 0:02:50.3]} 10... Be6 {[%clk 0:02:39.5]} 11.
b3 {[%clk 0:02:48.7]} 11... f6 {[%clk 0:02:36.7]} 12. O-O {[%clk 0:02:33.2]}
12... fxe5 {[%clk 0:02:33.2]} 13. Be3 {[%clk 0:02:32.6]} 13... Nd4 {[%clk
0:02:31.1]} 14. Ng5 {[%clk 0:02:23.2]} 14... Bf5 {[%clk 0:02:20.7]} 15. Nge4
{[%clk 0:02:20.5]} 15... c6 {[%clk 0:02:13.5]} 16. b4 {[%clk 0:02:05.5]} 16...
Qc7 {[%clk 0:02:03.1]} 17. Bg4 {[%clk 0:01:51.8]} 17... Bxg4 {[%clk 0:01:33.2]}
18. Qxg4 {[%clk 0:01:48.7]} 18... Qc8 {[%clk 0:01:26.7]} 19. Qh4 {[%clk
0:01:39.4]} 19... Nf5 {[%clk 0:01:23.7]} 20. Qg5 {[%clk 0:01:29.2]} 20... Bh6
{[%clk 0:01:21.2]} 21. Qg4 {[%clk 0:01:23.9]} 21... Nxe3 {[%clk 0:01:20.6]} 22.
fxe3 {[%clk 0:01:24.8]} 22... Qxg4 {[%clk 0:01:17.1]} 23. hxg4 {[%clk
0:01:22.3]} 23... Bxe3+ {[%clk 0:01:16.8]} 24. Kh1 {[%clk 0:01:22.8]} 24...
Rxf1+ {[%clk 0:01:08.8]} 25. Rxf1 {[%clk 0:01:21.9]} 25... Nxc4 {[%clk
0:01:09.5]} 26. b5 {[%clk 0:01:17.7]} 26... Bd4 {[%clk 0:01:01.4]} 27. bxc6
{[%clk 0:01:15.4]} 27... bxc6 {[%clk 0:01:01.2]} 28. Na4 {[%clk 0:01:14.8]}
28... Ne3 {[%clk 0:01:00.1]} 29. Rc1 {[%clk 0:01:08.5]} 29... Rf8 {[%clk
0:00:57.6]} 30. Ng3 {[%clk 0:00:50.3]} 30... Rf2 {[%clk 0:00:48.6]} 31. Rxc6
{[%clk 0:00:39.3]} 31... Rxg2 {[%clk 0:00:47.1]} 32. Nf1 {[%clk 0:00:36.2]}
32... Rxg4 {[%clk 0:00:41.2]} 33. Nxe3 {[%clk 0:00:35.5]} 33... Bxe3 {[%clk
0:00:40.7]} 34. Nc3 {[%clk 0:00:35.7]} 34... Rg1+ {[%clk 0:00:31.8]} 35. Kh2
{[%clk 0:00:35.2]} 35... Rc1 {[%clk 0:00:32.4]} 36. Rc8+ {[%clk 0:00:32.3]}
36... Kf7 {[%clk 0:00:31.2]} 37. Rc7 {[%clk 0:00:32.1]} 37... Bd4 {[%clk
0:00:28]} 38. Nd5 {[%clk 0:00:31.6]} 38... Rxc7 {[%clk 0:00:28.2]} 39. Nxc7
{[%clk 0:00:32.5]} 39... e6 {[%clk 0:00:24.2]} 40. Kg3 {[%clk 0:00:32.6]} 40...
h5 {[%clk 0:00:21.3]} 41. Nb5 {[%clk 0:00:30.2]} 41... g5 {[%clk 0:00:20.6]} 42.
Nd6+ {[%clk 0:00:30.1]} 42... Kf6 {[%clk 0:00:20.6]} 43. Ne4+ {[%clk 0:00:31]}
43... Kg6 {[%clk 0:00:20.8]} 44. Nd6 {[%clk 0:00:25.9]} 44... Be3 {[%clk
0:00:20.4]} 45. Ne4 {[%clk 0:00:25.7]} 45... Bf4+ {[%clk 0:00:21.3]} 46. Kf3
{[%clk 0:00:22.3]} 46... g4+ {[%clk 0:00:22.2]} 47. Kg2 {[%clk 0:00:22.5]} 47...
h4 {[%clk 0:00:22.5]} 48. Nd6 {[%clk 0:00:21.5]} 48... Kg5 {[%clk 0:00:21.8]}
49. a4 {[%clk 0:00:21.5]} 49... h3+ {[%clk 0:00:20.9]} 50. Kf2 {[%clk 0:00:21]}
50... g3+ {[%clk 0:00:21.1]} 51. Kf3 {[%clk 0:00:20.7]} 51... g2 {[%clk
0:00:21.3]} 52. Kf2 {[%clk 0:00:20.9]} 52... Be3+ {[%clk 0:00:21.4]} 53. Kxe3
{[%clk 0:00:20.6]} 53... g1=Q+ {[%clk 0:00:22.3]} 54. Kf3 {[%clk 0:00:20.8]}
54... Qf1+ {[%clk 0:00:21.3]} 55. Ke3 {[%clk 0:00:20]} 55... Qe1+ {[%clk
0:00:21.8]} 56. Kf3 {[%clk 0:00:19.9]} 56... Qd1+ {[%clk 0:00:22.2]} 57. Kg3
{[%clk 0:00:19.9]} 57... Qxd6 {[%clk 0:00:22.8]} 0-1

[Event "*** Titled Tuesday Blitz"]
[Site "Chess.com"]
[Date "2020.04.21"]
[Round "8"]
[White "JLRHei"]
[Black "HarryCun"]
[Result "1-0"]
[WhiteElo "2272"]
[BlackElo "2161"]
[TimeControl "180+1"]
[EndTime "11:39:16 PDT"]
[Termination "JLRHei won by resignation"]

1. d4 {[%clk 0:03:00.9]} 1... c6 {[%clk 0:03:00.9]} 2. c4 {[%clk 0:03:01.3]}
2... d5 {[%clk 0:03:00.4]} 3. Nf3 {[%clk 0:03:02.2]} 3... Nf6 {[%clk 0:02:59.4]}
4. g3 {[%clk 0:03:02.8]} 4... Bf5 {[%clk 0:02:48.7]} 5. Bg2 {[%clk 0:03:03]}
5... e6 {[%clk 0:02:45.4]} 6. O-O {[%clk 0:03:02.6]} 6... Nbd7 {[%clk
0:02:44.3]} 7. Nc3 {[%clk 0:03:03]} 7... Be7 {[%clk 0:02:42.8]} 8. b3 {[%clk
0:02:47.2]} 8... O-O {[%clk 0:02:41.6]} 9. Bb2 {[%clk 0:02:47.2]} 9... Ne4
{[%clk 0:02:40.5]} 10. Nd2 {[%clk 0:02:40.3]} 10... Nxc3 {[%clk 0:02:37.2]} 11.
Bxc3 {[%clk 0:02:41.2]} 11... Bg6 {[%clk 0:02:36.7]} 12. a4 {[%clk 0:02:19.2]}
12... Nf6 {[%clk 0:02:36.1]} 13. a5 {[%clk 0:02:16.2]} 13... a6 {[%clk
0:02:35.1]} 14. e3 {[%clk 0:01:32.9]} 14... Ne4 {[%clk 0:02:25.4]} 15. Nxe4
{[%clk 0:01:32.4]} 15... dxe4 {[%clk 0:02:26.3]} 16. Qe2 {[%clk 0:01:19.4]}
16... Bf6 {[%clk 0:02:20]} 17. Bb4 {[%clk 0:01:16]} 17... Re8 {[%clk 0:02:16.3]}
18. Rad1 {[%clk 0:01:09.8]} 18... Qc7 {[%clk 0:02:11.4]} 19. h4 {[%clk 0:01:07]}
19... h6 {[%clk 0:02:00]} 20. Qc2 {[%clk 0:01:05.9]} 20... e5 {[%clk 0:01:55.1]}
21. d5 {[%clk 0:00:59.2]} 21... cxd5 {[%clk 0:01:53.9]} 22. Rxd5 {[%clk
0:01:00.1]} 22... Rad8 {[%clk 0:01:47.3]} 23. Rfd1 {[%clk 0:00:59.5]} 23... Rxd5
{[%clk 0:01:45.3]} 24. Rxd5 {[%clk 0:01:00.4]} 24... Be7 {[%clk 0:01:43.3]} 25.
Bc3 {[%clk 0:00:48.4]} 25... f6 {[%clk 0:01:22.3]} 26. Bxe4 {[%clk 0:00:47.5]}
26... Bf7 {[%clk 0:01:20.9]} 27. Rd2 {[%clk 0:00:44.5]} 27... Bc5 {[%clk
0:01:18.5]} 28. Bd5 {[%clk 0:00:37.4]} 28... Rd8 {[%clk 0:01:12]} 29. Bxf7+
{[%clk 0:00:29.6]} 29... Kxf7 {[%clk 0:01:11.7]} 30. Rxd8 {[%clk 0:00:28.7]}
30... Qxd8 {[%clk 0:01:12.6]} 31. Qd2 {[%clk 0:00:29.1]} 31... Qc7 {[%clk
0:00:49.3]} 32. Qd5+ {[%clk 0:00:28.4]} 32... Kf8 {[%clk 0:00:47.4]} 33. h5
{[%clk 0:00:23.2]} 33... b6 {[%clk 0:00:45.3]} 34. Qa8+ {[%clk 0:00:18.2]} 34...
Ke7 {[%clk 0:00:43.4]} 35. Qxa6 {[%clk 0:00:18.3]} 35... Qd6 {[%clk 0:00:39.3]}
36. Qb7+ {[%clk 0:00:16.7]} 36... Kf8 {[%clk 0:00:37.5]} 37. axb6 {[%clk
0:00:16.6]} 37... Qd1+ {[%clk 0:00:35.6]} 38. Kg2 {[%clk 0:00:16.8]} 38... Bxe3
{[%clk 0:00:35.6]} 39. Qf3 {[%clk 0:00:14.9]} 39... Qxf3+ {[%clk 0:00:29.3]} 40.
Kxf3 {[%clk 0:00:15.8]} 40... Bxb6 {[%clk 0:00:29.9]} 41. b4 {[%clk 0:00:15.1]}
41... Ke7 {[%clk 0:00:29.6]} 42. c5 {[%clk 0:00:15.5]} 42... Bc7 {[%clk
0:00:29.5]} 43. Ke4 {[%clk 0:00:15.8]} 43... Ke6 {[%clk 0:00:29.5]} 44. b5
{[%clk 0:00:15.5]} 44... f5+ {[%clk 0:00:29.9]} 45. Kd3 {[%clk 0:00:15]} 45...
Kd5 {[%clk 0:00:30.4]} 46. Bb4 {[%clk 0:00:12.4]} 46... e4+ {[%clk 0:00:29.8]}
47. Ke3 {[%clk 0:00:12.3]} 47... Be5 {[%clk 0:00:29.4]} 48. c6 {[%clk
0:00:10.9]} 48... Bd4+ {[%clk 0:00:29.6]} 49. Kf4 {[%clk 0:00:10.3]} 49... Bb6
{[%clk 0:00:16.7]} 50. Kxf5 {[%clk 0:00:09.4]} 50... Kc4 {[%clk 0:00:17]} 51.
Bd6 {[%clk 0:00:09.2]} 51... Kxb5 {[%clk 0:00:17.3]} 52. c7 {[%clk 0:00:09.4]}
52... Bxc7 {[%clk 0:00:17.4]} 53. Bxc7 {[%clk 0:00:10.2]} 53... e3 {[%clk
0:00:18]} 54. fxe3 {[%clk 0:00:09.6]} 1-0

[Event "*** Titled Tuesday Blitz"]
[Site "Chess.com"]
[Date "2020.04.21"]
[Round "8"]
[White "drd_davi"]
[Black "TV27"]
[Result "1-0"]
[WhiteElo "2496"]
[BlackElo "2154"]
[TimeControl "180+1"]
[EndTime "11:39:18 PDT"]
[Termination "drd_davi won on time"]

1. e4 {[%clk 0:03:00.9]} 1... c5 {[%clk 0:02:58.2]} 2. b3 {[%clk 0:02:58]} 2...
Nc6 {[%clk 0:02:55.5]} 3. Bb2 {[%clk 0:02:57.9]} 3... e5 {[%clk 0:02:50.5]} 4.
f4 {[%clk 0:02:57.8]} 4... d6 {[%clk 0:02:48.4]} 5. Nf3 {[%clk 0:02:56.8]} 5...
exf4 {[%clk 0:02:24.6]} 6. Bc4 {[%clk 0:02:56.5]} 6... Be6 {[%clk 0:02:19]} 7.
O-O {[%clk 0:02:52.5]} 7... Bxc4 {[%clk 0:02:17.4]} 8. bxc4 {[%clk 0:02:53.4]}
8... Nf6 {[%clk 0:02:12.3]} 9. Nc3 {[%clk 0:02:47.7]} 9... Be7 {[%clk 0:02:10]}
10. Nd5 {[%clk 0:02:47.7]} 10... O-O {[%clk 0:01:58.9]} 11. d3 {[%clk
0:02:44.2]} 11... Ng4 {[%clk 0:01:24.8]} 12. Qd2 {[%clk 0:02:11.1]} 12... Ne3
{[%clk 0:01:20.1]} 13. Nxe3 {[%clk 0:01:55.1]} 13... fxe3 {[%clk 0:01:18.8]} 14.
Qxe3 {[%clk 0:01:56]} 14... Bf6 {[%clk 0:01:17.6]} 15. Rab1 {[%clk 0:01:50.8]}
15... Bxb2 {[%clk 0:01:06.3]} 16. Rxb2 {[%clk 0:01:51.7]} 16... Qe7 {[%clk
0:01:03.6]} 17. Qf4 {[%clk 0:01:32.5]} 17... b6 {[%clk 0:00:56]} 18. Nh4 {[%clk
0:01:09.1]} 18... Nd4 {[%clk 0:00:47]} 19. c3 {[%clk 0:00:56.5]} 19... Ne6
{[%clk 0:00:43]} 20. Qg3 {[%clk 0:00:56.4]} 20... Qg5 {[%clk 0:00:26.2]} 21.
Qxg5 {[%clk 0:00:51.2]} 21... Nxg5 {[%clk 0:00:25.5]} 22. Nf5 {[%clk 0:00:52.1]}
22... Rfd8 {[%clk 0:00:23.9]} 23. Rbf2 {[%clk 0:00:47.1]} 23... f6 {[%clk
0:00:21.7]} 24. Ne3 {[%clk 0:00:38.9]} 24... Nf7 {[%clk 0:00:20.4]} 25. Nd5
{[%clk 0:00:30.5]} 25... Ne5 {[%clk 0:00:17.7]} 26. Rd1 {[%clk 0:00:19.8]} 26...
Rd7 {[%clk 0:00:16.8]} 27. h3 {[%clk 0:00:16.6]} 27... Kf7 {[%clk 0:00:14.5]}
28. Kh2 {[%clk 0:00:16.7]} 28... Nc6 {[%clk 0:00:13]} 29. g4 {[%clk 0:00:15.3]}
29... Ne5 {[%clk 0:00:12]} 30. Kg3 {[%clk 0:00:15.3]} 30... Ng6 {[%clk
0:00:11.3]} 31. h4 {[%clk 0:00:14.7]} 31... Ne7 {[%clk 0:00:10.9]} 32. g5 {[%clk
0:00:12.7]} 32... Nxd5 {[%clk 0:00:10.3]} 33. exd5 {[%clk 0:00:13.6]} 33... Re8
{[%clk 0:00:08.4]} 34. Rdf1 {[%clk 0:00:09.9]} 34... Re3+ {[%clk 0:00:07.3]} 35.
Rf3 {[%clk 0:00:10]} 35... Rxf3+ {[%clk 0:00:06.8]} 36. Rxf3 {[%clk 0:00:10.9]}
36... Re7 {[%clk 0:00:06.6]} 37. Kf4 {[%clk 0:00:10]} 37... Re2 {[%clk
0:00:05.7]} 38. gxf6 {[%clk 0:00:09.3]} 38... gxf6 {[%clk 0:00:04.8]} 39. h5
{[%clk 0:00:09.6]} 39... h6 {[%clk 0:00:04]} 40. Rg3 {[%clk 0:00:08.7]} 40...
Rxa2 {[%clk 0:00:02.8]} 41. Rg6 {[%clk 0:00:08.8]} 41... Rf2+ {[%clk 0:00:02.1]}
42. Ke3 {[%clk 0:00:08.9]} 42... Rh2 {[%clk 0:00:01.2]} 43. Rxh6 {[%clk
0:00:09.3]} 1-0

[Event "*** Titled Tuesday Blitz"]
[Site "Chess.com"]
[Date "2020.04.21"]
[Round "8"]
[White "reniite"]
[Black "tan275"]
[Result "0-1"]
[WhiteElo "1948"]
[BlackElo "2153"]
[TimeControl "180+1"]
[EndTime "11:39:18 PDT"]
[Termination "tan275 won by resignation"]

1. e4 {[%clk 0:02:43.9]} 1... c6 {[%clk 0:02:59.9]} 2. d4 {[%clk 0:02:43.5]}
2... d5 {[%clk 0:03:00.4]} 3. exd5 {[%clk 0:02:41.4]} 3... cxd5 {[%clk
0:03:00.5]} 4. c4 {[%clk 0:02:42]} 4... Nf6 {[%clk 0:03:00.5]} 5. Nc3 {[%clk
0:02:41.3]} 5... g6 {[%clk 0:03:00.8]} 6. Nf3 {[%clk 0:02:40.9]} 6... Bg7 {[%clk
0:03:00.7]} 7. c5 {[%clk 0:02:39.9]} 7... O-O {[%clk 0:03:00.2]} 8. Qb3 {[%clk
0:02:38.1]} 8... Nc6 {[%clk 0:02:54.2]} 9. Bb5 {[%clk 0:02:24.2]} 9... Bg4
{[%clk 0:02:33.7]} 10. Ne5 {[%clk 0:02:10.1]} 10... Nxe5 {[%clk 0:02:23.5]} 11.
dxe5 {[%clk 0:01:49.5]} 11... Nd7 {[%clk 0:02:08.9]} 12. Qxd5 {[%clk 0:01:42.5]}
12... Nxe5 {[%clk 0:01:59.4]} 13. O-O {[%clk 0:01:40.3]} 13... a6 {[%clk
0:01:44]} 14. Ba4 {[%clk 0:01:29.3]} 14... Qxd5 {[%clk 0:01:37]} 15. Nxd5 {[%clk
0:01:27.4]} 15... Rfd8 {[%clk 0:01:34.8]} 16. Bb3 {[%clk 0:00:38.3]} 16... Nd3
{[%clk 0:01:28]} 17. Nxe7+ {[%clk 0:00:29.6]} 17... Kf8 {[%clk 0:01:23.7]} 18.
Nd5 {[%clk 0:00:17.9]} 18... Be2 {[%clk 0:01:21.2]} 19. Nb6 {[%clk 0:00:13.8]}
19... Rab8 {[%clk 0:01:15.1]} 20. Bg5 {[%clk 0:00:13.4]} 20... f6 {[%clk
0:01:01]} 21. Be3 {[%clk 0:00:13.6]} 21... Bxf1 {[%clk 0:01:00.1]} 22. Kxf1
{[%clk 0:00:14.5]} 22... f5 {[%clk 0:00:55.2]} 23. Be6 {[%clk 0:00:09]} 23...
Ke7 {[%clk 0:00:49.6]} 24. Bc4 {[%clk 0:00:09.1]} 24... Nxb2 {[%clk 0:00:47.6]}
25. Re1 {[%clk 0:00:09.1]} 25... Kf8 {[%clk 0:00:32.2]} 26. Bg5 {[%clk
0:00:06.2]} 26... Nxc4 {[%clk 0:00:27.2]} 27. Nxc4 {[%clk 0:00:02.5]} 27... Re8
{[%clk 0:00:26]} 28. Nd6 {[%clk 0:00:02.7]} 28... Rxe1+ {[%clk 0:00:24.9]} 29.
Kxe1 {[%clk 0:00:03.6]} 29... Bd4 {[%clk 0:00:23]} 30. Nc4 {[%clk 0:00:02.5]}
30... Bxc5 {[%clk 0:00:21.7]} 31. f3 {[%clk 0:00:02.8]} 31... Re8+ {[%clk
0:00:20.7]} 32. Kd2 {[%clk 0:00:03]} 32... Be7 {[%clk 0:00:19.8]} 33. Bf4 {[%clk
0:00:02.2]} 33... Bf6 {[%clk 0:00:18.6]} 34. Kd3 {[%clk 0:00:01.9]} 34... Rd8+
{[%clk 0:00:18.5]} 35. Kc2 {[%clk 0:00:02.2]} 35... b5 {[%clk 0:00:18]} 36. Ne3
{[%clk 0:00:02.2]} 36... Rc8+ {[%clk 0:00:16.4]} 37. Kd2 {[%clk 0:00:01.6]}
37... Kf7 {[%clk 0:00:12.2]} 38. Bd6 {[%clk 0:00:01.8]} 38... Rd8 {[%clk
0:00:11.2]} 39. Kd3 {[%clk 0:00:01.8]} 39... Rxd6+ {[%clk 0:00:11.2]} 40. Ke2
{[%clk 0:00:02.7]} 40... Rc6 {[%clk 0:00:10.5]} 41. Nd1 {[%clk 0:00:02.9]} 41...
Rc2+ {[%clk 0:00:10.3]} 42. Ke3 {[%clk 0:00:02.3]} 42... Rxg2 {[%clk 0:00:10.9]}
0-1

[Event "*** Titled Tuesday Blitz"]
[Site "Chess.com"]
[Date "2020.04.21"]
[Round "8"]
[White "Salem-AR"]
[Black "Sviridov_Valery"]
[Result "0-1"]
[WhiteElo "2985"]
[BlackElo "2875"]
[TimeControl "180+1"]
[EndTime "11:39:19 PDT"]
[Termination "Sviridov_Valery won on time"]

1. d4 {[%clk 0:03:00.9]} 1... g6 {[%clk 0:02:59.3]} 2. e4 {[%clk 0:03:00.9]}
2... Bg7 {[%clk 0:02:59.8]} 3. Nf3 {[%clk 0:03:01.6]} 3... d6 {[%clk 0:02:59.6]}
4. Bd3 {[%clk 0:03:02.3]} 4... a6 {[%clk 0:02:58.4]} 5. O-O {[%clk 0:03:02.1]}
5... b6 {[%clk 0:02:58.7]} 6. Re1 {[%clk 0:03:01.3]} 6... e6 {[%clk 0:02:59]} 7.
Nc3 {[%clk 0:03:00.3]} 7... Bb7 {[%clk 0:02:59.2]} 8. Ne2 {[%clk 0:03:00.5]}
8... Nd7 {[%clk 0:02:59.2]} 9. Ng3 {[%clk 0:03:00]} 9... Ne7 {[%clk 0:02:59.6]}
10. Qe2 {[%clk 0:02:58.1]} 10... h6 {[%clk 0:02:57.2]} 11. h3 {[%clk 0:02:55.2]}
11... O-O {[%clk 0:02:56.7]} 12. c3 {[%clk 0:02:54.5]} 12... c5 {[%clk
0:02:54.1]} 13. Be3 {[%clk 0:02:53.5]} 13... cxd4 {[%clk 0:02:53.6]} 14. cxd4
{[%clk 0:02:53.3]} 14... b5 {[%clk 0:02:46.4]} 15. a4 {[%clk 0:02:50.7]} 15...
bxa4 {[%clk 0:02:43.5]} 16. Rxa4 {[%clk 0:02:50.2]} 16... Nb6 {[%clk 0:02:39.3]}
17. Ra3 {[%clk 0:02:45.9]} 17... a5 {[%clk 0:02:38.5]} 18. Nh2 {[%clk
0:02:34.6]} 18... Nc6 {[%clk 0:02:36.5]} 19. Ng4 {[%clk 0:02:07.6]} 19... h5
{[%clk 0:02:36.1]} 20. Nxh5 {[%clk 0:02:07.7]} 20... gxh5 {[%clk 0:02:35.1]} 21.
Nh6+ {[%clk 0:02:07.9]} 21... Bxh6 {[%clk 0:02:32.3]} 22. Bxh6 {[%clk
0:02:08.8]} 22... Qf6 {[%clk 0:02:10.9]} 23. Qxh5 {[%clk 0:02:08.7]} 23... Qg6
{[%clk 0:02:03.5]} 24. Qh4 {[%clk 0:02:08.3]} 24... Nxd4 {[%clk 0:02:03]} 25.
Bb1 {[%clk 0:02:02.8]} 25... Nf5 {[%clk 0:02:02.8]} 26. Qg5 {[%clk 0:01:29.4]}
26... Nxh6 {[%clk 0:01:49.8]} 27. Qe7 {[%clk 0:01:28.5]} 27... Rfe8 {[%clk
0:01:21.8]} 28. Qxb7 {[%clk 0:01:28]} 28... Rab8 {[%clk 0:01:22.3]} 29. Qa6
{[%clk 0:01:19.8]} 29... Qf6 {[%clk 0:01:21.8]} 30. Rg3+ {[%clk 0:01:02.7]}
30... Kh8 {[%clk 0:01:21.5]} 31. Qxa5 {[%clk 0:00:50]} 31... d5 {[%clk
0:01:13.1]} 32. e5 {[%clk 0:00:47]} 32... Qf4 {[%clk 0:01:13]} 33. Rf3 {[%clk
0:00:42.1]} 33... Qg5 {[%clk 0:01:12.8]} 34. Rg3 {[%clk 0:00:41.3]} 34... Qh4
{[%clk 0:01:12.9]} 35. Qa7 {[%clk 0:00:21.3]} 35... Qe7 {[%clk 0:01:07.7]} 36.
Qa5 {[%clk 0:00:18.2]} 36... Nc4 {[%clk 0:01:06.6]} 37. Qc3 {[%clk 0:00:16.1]}
37... Rxb2 {[%clk 0:01:02.4]} 38. Bd3 {[%clk 0:00:14.9]} 38... Qb4 {[%clk
0:01:02]} 39. Qc1 {[%clk 0:00:12.2]} 39... Qd2 {[%clk 0:01:02]} 40. Bxc4 {[%clk
0:00:10.3]} 40... Qxc1 {[%clk 0:01:02.1]} 41. Rxc1 {[%clk 0:00:10.8]} 41... Rc8
{[%clk 0:01:00]} 42. Rgc3 {[%clk 0:00:07.9]} 42... Rxc4 {[%clk 0:00:59.4]} 43.
Rxc4 {[%clk 0:00:08.8]} 43... dxc4 {[%clk 0:01:00.3]} 44. Rxc4 {[%clk
0:00:09.7]} 44... Kg7 {[%clk 0:01:00.8]} 45. g4 {[%clk 0:00:09.4]} 45... Ng8
{[%clk 0:00:58.2]} 46. Kg2 {[%clk 0:00:08.3]} 46... Ne7 {[%clk 0:00:58.2]} 47.
Kg3 {[%clk 0:00:07.8]} 47... Nd5 {[%clk 0:00:58.1]} 48. f4 {[%clk 0:00:06.3]}
48... Rb3+ {[%clk 0:00:58.6]} 49. Kh4 {[%clk 0:00:05.7]} 49... Ne3 {[%clk
0:00:58.9]} 50. Rc7 {[%clk 0:00:06]} 50... Kg6 {[%clk 0:00:58.3]} 51. f5+ {[%clk
0:00:03.8]} 51... exf5 {[%clk 0:00:59.2]} 52. Rc6+ {[%clk 0:00:04.3]} 52... Kg7
{[%clk 0:00:59.7]} 53. gxf5 {[%clk 0:00:04.4]} 53... Nxf5+ {[%clk 0:00:59.5]}
54. Kg5 {[%clk 0:00:04.9]} 54... Nd4 {[%clk 0:01:00.1]} 55. Rc4 {[%clk
0:00:04.3]} 55... Ne6+ {[%clk 0:00:59.8]} 56. Kg4 {[%clk 0:00:04.9]} 56... Re3
{[%clk 0:00:59.9]} 57. Kf5 {[%clk 0:00:02.7]} 57... Rxh3 {[%clk 0:00:59.7]} 58.
Rg4+ {[%clk 0:00:02.9]} 58... Kf8 {[%clk 0:00:59.4]} 59. Ra4 {[%clk 0:00:02.8]}
59... Rf3+ {[%clk 0:00:58.8]} 60. Kg4 {[%clk 0:00:02.9]} 60... Rf1 {[%clk
0:00:59.2]} 61. Rb4 {[%clk 0:00:01.8]} 61... Kg7 {[%clk 0:00:59.5]} 62. Ra4
{[%clk 0:00:02.1]} 62... Kg6 {[%clk 0:00:59.8]} 63. Rb4 {[%clk 0:00:02.4]} 63...
Rf5 {[%clk 0:00:58.9]} 0-1